bitfinex/quotes_BTCUSD_20240620
["timestamp","ask_amount","ask_price","bid_price","bid_amount"]
[1718904531407,0.01036218,64873.0,64872.0,0.85721479]
[1718904533683,0.01036186,64873.0,64872.0,0.85721479]
[1718904535913,0.01036186,64873.0,64872.0,0.84721479]
[1718904536143,0.01036186,64873.0,64872.0,0.56299526]
[1718904536554,0.01035584,64873.0,64872.0,0.46299526]
[1718904537154,0.01035584,64873.0,64872.0,0.0951594]
[1718904537155,0.05585584,64873.0,64872.0,0.0951594]
[1718904537812,0.05585584,64873.0,64872.0,0.29921914]
[1718904539035,0.05585584,64873.0,64872.0,0.32914105]
[1718904539444,0.04628219,64873.0,64872.0,0.32914105]
[1718904539655,0.01035398,64873.0,64872.0,0.48170217]
[1718904540294,0.01035398,64873.0,64872.0,0.46293887]
[1718904540531,0.01035398,64873.0,64872.0,0.43301696]
[1718904541638,0.01035398,64873.0,64872.0,0.45178026]
[1718904542438,0.01035398,64873.0,64872.0,0.0951594]
[1718904542643,0.05585398,64873.0,64872.0,0.0951594]
[1718904543036,0.05585398,64873.0,64872.0,0.28045584]
[1718904543235,0.05585398,64873.0,64872.0,0.29921914]
[1718904544159,0.05585398,64873.0,64872.0,0.005785]
[1718904544485,0.07605398,64873.0,64872.0,0.005785]
[1718904544775,0.08774402,64873.0,64872.0,0.005785]
[1718904544919,0.08774402,64873.0,64872.0,0.0951594]
[1718904545119,0.07605398,64873.0,64872.0,0.0951594]
[1718904545593,0.06648219,64873.0,64872.0,0.0893744]
[1718904545776,0.06648219,64873.0,64872.0,0.0953744]
[1718904545777,0.07705347,64873.0,64872.0,0.0953744]
[1718904546355,0.07705347,64873.0,64872.0,0.0983744]
[1718904548244,0.07705347,64873.0,64872.0,0.009]
[1718904548595,0.06748219,64873.0,64872.0,0.009]
[1718904548846,0.0770517,64873.0,64872.0,0.009]
[1718904549786,0.0113517,64873.0,64872.0,0.009]
[1718904549989,0.0113517,64873.0,64872.0,0.16156112]
[1718904550191,0.0113517,64873.0,64872.0,0.67229526]
[1718904550397,0.0113517,64873.0,64872.0,0.75815296]
[1718904551143,0.50655551,64890.0,64884.0,0.01]
[1718904551359,0.50655551,64890.0,64885.0,0.18529644]
[1718904551536,0.0202,64892.0,64885.0,0.18529644]
[1718904551744,0.13801418,64891.0,64885.0,0.18529644]
[1718904552807,0.13801418,64891.0,64889.0,0.18529644]
[1718904553019,0.22713679,64892.0,64890.0,0.0893744]
[1718904553627,0.01,64891.0,64890.0,0.29343414]
[1718904553825,0.22713679,64892.0,64890.0,0.27467084]
[1718904554005,0.22713679,64892.0,64891.0,0.18529644]
[1718904554202,0.06892261,64892.0,64891.0,0.29343414]
[1718904554403,0.13801418,64893.0,64891.0,0.0893744]
[1718904554619,0.13801418,64892.0,64891.0,0.0893744]
[1718904554821,0.13808589,64892.0,64891.0,0.0893744]
[1718904555184,0.0202,64896.0,64891.0,0.0893744]
[1718904555185,0.08883676,64896.0,64891.0,0.0893744]
[1718904555353,0.08883676,64896.0,64889.0,0.001]
[1718904555354,0.08883676,64896.0,64890.0,0.0893744]
[1718904555555,0.08883676,64896.0,64891.0,0.0903744]
[1718904555760,0.13810387,64892.0,64891.0,0.0903744]
[1718904555960,0.14710387,64892.0,64891.0,0.0903744]
[1718904556208,0.009,64892.0,64891.0,0.0903744]
[1718904556824,0.009,64892.0,64891.0,0.27467084]
[1718904557220,0.009,64892.0,64891.0,0.27567084]
[1718904557385,0.13810387,64894.0,64891.0,0.27567084]
[1718904557386,0.13810387,64894.0,64892.0,0.0893744]
[1718904557590,0.13810387,64894.0,64892.0,0.27467084]
[1718904557796,0.13811422,64894.0,64892.0,0.27467084]
[1718904558293,0.13811422,64894.0,64893.0,0.18529644]
[1718904558407,0.13811422,64895.0,64893.0,0.18529644]
[1718904558615,0.13811422,64895.0,64892.0,0.27467084]
[1718904558814,0.001,64894.0,64892.0,0.27467084]
[1718904559225,0.001,64894.0,64892.0,0.0893744]
[1718904559433,0.13911422,64894.0,64892.0,0.0893744]
[1718904559650,0.13911422,64894.0,64892.0,0.27467084]
[1718904559842,0.001,64894.0,64893.0,0.18529644]
[1718904560042,0.009,64894.0,64893.0,0.18529644]
[1718904560341,0.009,64894.0,64893.0,0.18629644]
[1718904560755,0.08883676,64896.0,64893.0,0.18529644]
[1718904560961,0.27605896,64895.0,64894.0,0.18529644]
[1718904561219,0.27605544,64895.0,64894.0,0.18529644]
[1718904561421,0.28562717,64895.0,64894.0,0.18529644]
[1718904562278,0.28562358,64895.0,64894.0,0.18529644]
[1718904562782,0.28562358,64895.0,64893.0,0.002]
[1718904562993,0.14759418,64894.0,64893.0,0.001]
[1718904563212,0.14759418,64894.0,64883.0,0.0893744]
[1718904563213,0.0659,64892.0,64883.0,0.0893744]
[1718904563415,0.20762543,64895.0,64883.0,0.0893744]
[1718904563416,0.1824,64888.0,64883.0,0.0893744]
[1718904563540,0.00957138,64887.0,64884.0,0.18529644]
[1718904563745,0.00957138,64886.0,64883.0,0.0893744]
[1718904563942,0.00956978,64885.0,64883.0,0.0893744]
[1718904564167,0.00956978,64884.0,64883.0,0.0893744]
[1718904564369,0.00956978,64884.0,64879.0,0.0893744]
[1718904564557,0.00956978,64883.0,64879.0,0.0893744]
[1718904564761,0.1824,64888.0,64879.0,0.0893744]
[1718904564762,0.00956978,64882.0,64879.0,0.0893744]
[1718904565000,0.00956978,64881.0,64879.0,0.0893744]
[1718904565219,0.00956978,64880.0,64879.0,0.0893744]
[1718904565613,0.00956978,64880.0,64874.0,0.18529644]
[1718904565853,0.00956978,64879.0,64875.0,0.18529644]
[1718904565988,0.00956978,64878.0,64874.0,0.27467084]
[1718904566182,0.00956978,64877.0,64875.0,0.18529644]
[1718904566584,0.00956978,64876.0,64875.0,0.18529644]
[1718904566779,0.004,64880.0,64875.0,0.18529644]
[1718904567001,0.004,64882.0,64875.0,0.18529644]
[1718904567190,0.004,64882.0,64874.0,0.0893744]
[1718904567191,0.00956885,64879.0,64874.0,0.0893744]
[1718904567392,0.01256885,64878.0,64874.0,0.0893744]
[1718904567549,0.0661,64876.0,64872.0,0.0903204]
[1718904567760,0.0661,64876.0,64875.0,0.001]
[1718904568015,0.07566894,64876.0,64875.0,0.001]
[1718904568153,0.21368176,64876.0,64872.0,0.000946]
[1718904568510,0.14758176,64875.0,64872.0,0.000946]
[1718904568708,0.00956894,64874.0,64872.0,0.000946]
[1718904568912,0.13801282,64875.0,64872.0,0.000946]
[1718904568913,0.00956894,64873.0,64872.0,0.000946]
[1718904569691,0.00956894,64873.0,64872.0,0.0903204]
[1718904570245,0.00957127,64873.0,64872.0,0.0963204]
[1718904570423,0.13801944,64875.0,64872.0,0.006946]
[1718904570424,0.00957127,64874.0,64872.0,0.006946]
[1718904570667,0.00957127,64873.0,64872.0,0.004946]
[1718904570887,0.00957127,64873.0,64872.0,0.010946]
[1718904571090,0.00957127,64874.0,64872.0,0.010946]
[1718904571297,0.00957127,64873.0,64872.0,0.010946]
[1718904571677,0.14759071,64875.0,64872.0,0.004946]
[1718904571926,0.00957127,64874.0,64872.0,0.004946]
[1718904572098,0.00957127,64873.0,64872.0,0.004946]
[1718904572318,0.00957127,64873.0,64872.0,0.000946]
[1718904572486,0.14760428,64873.0,64872.0,0.0903204]
[1718904572694,0.00957127,64873.0,64872.0,0.002946]
[1718904573220,0.0661,64876.0,64872.0,0.000946]
[1718904573427,0.14756842,64875.0,64872.0,0.004946]
[1718904573650,0.00957238,64874.0,64872.0,0.0993204]
[1718904573851,0.00957238,64873.0,64872.0,0.0993204]
[1718904574324,0.00957238,64873.0,64872.0,0.000946]
[1718904574437,0.00957238,64874.0,64872.0,0.002946]
[1718904574650,0.13799604,64875.0,64872.0,0.002946]
[1718904574651,0.00957238,64873.0,64872.0,0.002946]
[1718904574860,0.00957238,64874.0,64872.0,0.000946]
[1718904575065,0.00957238,64873.0,64872.0,0.000946]
[1718904575264,0.00957238,64873.0,64872.0,0.006946]
[1718904575469,0.00957238,64874.0,64872.0,0.006946]
[1718904575715,0.00957238,64873.0,64872.0,0.006946]
[1718904576163,0.00957394,64873.0,64872.0,0.006946]
[1718904576568,0.00957394,64873.0,64872.0,0.00689785]
[1718904576683,0.00957394,64874.0,64872.0,0.00089785]
[1718904576891,0.07567394,64873.0,64872.0,0.00489785]
[1718904577242,0.07567394,64873.0,64872.0,0.00989785]
[1718904577950,0.07567394,64873.0,64872.0,0.00489785]
[1718904578210,0.07867394,64873.0,64872.0,0.00589785]
[1718904579168,0.07868037,64873.0,64872.0,0.00589785]
[1718904579371,0.07868037,64873.0,64872.0,0.00189785]
[1718904579727,0.07868037,64873.0,64872.0,0.00389785]
[1718904579862,0.07868037,64873.0,64872.0,0.00189785]
[1718904580266,0.22774064,64873.0,64872.0,0.00289785]
[1718904580873,0.08968037,64873.0,64872.0,0.00289785]
[1718904582323,0.08968443,64873.0,64872.0,0.00289785]
[1718904584717,0.08960711,64873.0,64872.0,0.00289785]
[1718904585340,0.08002268,64873.0,64872.0,0.00289785]
[1718904585664,0.08960718,64873.0,64872.0,0.00289785]
[1718904586034,0.3348983,64873.0,64872.0,0.00289785]
[1718904586234,0.34960186,64873.0,64872.0,0.00289785]
[1718904587886,0.41139986,64873.0,64872.0,0.00289785]
[1718904588447,0.41140031,64873.0,64872.0,0.00289785]
[1718904589912,0.39669675,64873.0,64872.0,0.00289785]
[1718904590459,0.33490034,64873.0,64872.0,0.00289785]
[1718904590806,0.02358654,64873.0,64872.0,0.00289785]
[1718904591006,0.16159486,64873.0,64872.0,0.00289785]
[1718904591207,0.02358654,64873.0,64872.0,0.00289785]
[1718904591592,0.02358689,64873.0,64872.0,0.00289785]
[1718904591798,0.02358687,64873.0,64872.0,0.00289785]
[1718904594463,0.02358687,64873.0,64872.0,0.12599785]
[1718904594774,0.014,64873.0,64872.0,0.12599785]
[1718904594954,0.02358524,64873.0,64872.0,0.12599785]
[1718904595286,0.02444524,64873.0,64872.0,0.12599785]
[1718904595501,0.02444524,64873.0,64872.0,0.31129429]
[1718904595709,0.02444524,64873.0,64872.0,0.51493199]
[1718904596503,0.01344524,64873.0,64872.0,0.51393199]
[1718904596654,0.01044524,64873.0,64872.0,0.51293199]
[1718904596856,0.01644524,64873.0,64872.0,0.51293199]
[1718904597270,0.01644524,64873.0,64872.0,0.56422519]
[1718904597692,0.0164452,64873.0,64872.0,0.56422519]
[1718904600220,0.0164452,64873.0,64872.0,0.71678631]
[1718904600426,0.0164452,64873.0,64872.0,0.66549311]
[1718904600874,0.00686,64873.0,64872.0,0.66549311]
[1718904601247,0.01644572,64873.0,64872.0,0.67549311]
[1718904601402,0.01644572,64873.0,64872.0,0.74304242]
[1718904601591,0.01644572,64873.0,64872.0,0.73304242]
[1718904602480,0.01244572,64873.0,64872.0,0.73304242]
[1718904602616,0.01044572,64873.0,64872.0,0.73304242]
[1718904602821,0.01044572,64873.0,64872.0,0.74804242]
[1718904603013,0.01044572,64873.0,64872.0,0.74304242]
[1718904603413,0.01144572,64873.0,64872.0,0.75404242]
[1718904603633,0.01144572,64873.0,64872.0,0.76704242]
[1718904603853,0.01144652,64873.0,64872.0,0.76704242]
[1718904605638,0.01144652,64873.0,64872.0,0.75704242]
[1718904605639,0.03541189,64873.0,64872.0,0.75704242]
[1718904605842,0.03541189,64873.0,64872.0,0.76704242]
[1718904606971,0.03541257,64873.0,64872.0,0.76704242]
[1718904607733,0.03541257,64873.0,64872.0,0.75704242]
[1718904608190,0.03541257,64873.0,64872.0,0.76704242]
[1718904608604,0.0114472,64873.0,64872.0,0.76704242]
[1718904609888,0.01144644,64873.0,64872.0,0.76704242]
[1718904611111,0.4788,64889.0,64888.0,0.42715974]
[1718904611249,0.48594344,64892.0,64891.0,0.29343414]
[1718904611463,0.05221748,64892.0,64891.0,0.29343414]
[1718904611693,0.05221748,64892.0,64891.0,0.34508755]
[1718904612515,0.05221748,64892.0,64891.0,0.34608755]
[1718904612516,0.05821748,64892.0,64891.0,0.34608755]
[1718904612724,0.05821748,64892.0,64891.0,0.29403414]
[1718904614629,0.02996438,64892.0,64891.0,0.29403414]
[1718904615418,0.02996438,64892.0,64891.0,0.44659526]
[1718904615649,0.02996438,64892.0,64891.0,0.66449526]
[1718904616270,0.02996438,64892.0,64891.0,0.66349526]
[1718904616271,0.02396438,64892.0,64891.0,0.66349526]
[1718904616496,0.0016,64898.0,64897.0,0.29303414]
[1718904616671,0.0932,64905.0,64897.0,0.29303414]
[1718904616672,0.00862,64911.0,64906.0,0.0893744]
[1718904616875,0.00862,64911.0,64907.0,0.18529644]
[1718904617294,0.00862,64911.0,64910.0,0.18529644]
[1718904617891,0.03580562,64911.0,64910.0,0.32576425]
[1718904618099,0.03580562,64911.0,64910.0,0.49668867]
[1718904618100,0.07489153,64911.0,64910.0,0.49668867]
[1718904618301,0.04770591,64911.0,64910.0,0.72368867]
[1718904618516,0.00862,64911.0,64910.0,0.72368867]
[1718904619238,0.00862,64911.0,64910.0,0.82368867]
[1718904619438,0.00862,64911.0,64910.0,1.02568867]
[1718904619646,0.00856606,64911.0,64910.0,1.02568867]
[1718904619848,0.00856606,64911.0,64910.0,0.82368867]
[1718904620055,0.00856606,64911.0,64910.0,0.83668867]
[1718904620246,0.00856606,64911.0,64910.0,0.84168867]
[1718904620566,0.00856606,64911.0,64910.0,0.83668867]
[1718904621345,0.00856606,64911.0,64910.0,0.82368867]
[1718904621692,0.00848623,64911.0,64910.0,0.82368867]
[1718904622027,0.00848623,64911.0,64910.0,0.82768867]
[1718904622233,0.00848623,64911.0,64910.0,0.66259526]
[1718904622429,0.00848623,64911.0,64910.0,0.29303414]
[1718904622633,0.00848623,64911.0,64910.0,0.30703414]
[1718904622977,0.01807324,64911.0,64910.0,0.32103414]
[1718904623226,0.01807324,64911.0,64910.0,0.35313755]
[1718904623461,0.00848623,64911.0,64910.0,0.33913755]
[1718904623667,0.01807287,64911.0,64910.0,0.32513755]
[1718904623870,0.01807287,64911.0,64910.0,0.32813755]
[1718904624074,0.01807287,64911.0,64910.0,0.33413755]
[1718904624492,0.00848623,64911.0,64910.0,0.46459526]
[1718904624698,0.0180728,64911.0,64910.0,0.67689526]
[1718904624890,0.00848623,64911.0,64910.0,0.67689526]
[1718904625101,0.00848623,64911.0,64910.0,0.76478479]
[1718904626362,0.00848623,64911.0,64910.0,0.96078479]
[1718904626592,0.00972,64919.0,64918.0,0.52103414]
[1718904626714,0.00972,64919.0,64918.0,0.67359526]
[1718904626917,0.00972,64919.0,64918.0,0.71709333]
[1718904627821,0.00972,64919.0,64918.0,0.72009333]
[1718904628637,0.00972,64919.0,64918.0,0.71009333]
[1718904628837,0.00972,64919.0,64918.0,0.61309333]
[1718904629246,0.00972,64919.0,64918.0,0.49209333]
[1718904629460,0.00972,64919.0,64918.0,0.44559526]
[1718904629811,0.00972,64919.0,64918.0,0.45659526]
[1718904630023,0.00972,64919.0,64918.0,0.46159526]
[1718904630163,0.00972,64919.0,64918.0,0.45059526]
[1718904630549,0.00972,64919.0,64918.0,0.45359526]
[1718904630971,0.00972,64919.0,64918.0,0.44559526]
[1718904632487,0.00972,64919.0,64918.0,0.44859526]
[1718904632954,0.00972,64919.0,64918.0,0.29603414]
[1718904633429,0.00972,64919.0,64918.0,0.27767084]
[1718904633649,0.00972,64919.0,64918.0,0.27467084]
[1718904635521,0.00972,64919.0,64918.0,0.29303414]
[1718904635864,0.00972,64919.0,64918.0,0.29403414]
[1718904638127,0.00972,64919.0,64918.0,0.44659526]
[1718904638302,0.00972,64919.0,64918.0,0.53769526]
[1718904638706,0.00972,64919.0,64918.0,0.54769526]
[1718904639251,0.00972,64919.0,64918.0,0.54669526]
[1718904639571,0.00972,64919.0,64918.0,0.54869526]
[1718904640030,0.00972,64919.0,64918.0,0.54669526]
[1718904640227,0.00972,64919.0,64918.0,0.44559526]
[1718904640407,0.00972,64919.0,64918.0,0.29603414]
[1718904641184,0.00972,64919.0,64918.0,0.003]
[1718904641602,0.00972,64919.0,64918.0,0.20665974]
[1718904642014,0.00972,64919.0,64918.0,0.18829644]
[1718904642408,0.00972,64919.0,64918.0,0.20665974]
[1718904642619,0.00972,64919.0,64918.0,0.18829644]
[1718904643926,0.00972,64919.0,64918.0,0.003]
[1718904644135,0.00972,64919.0,64910.0,0.000946]
[1718904644136,0.0481,64916.0,64910.0,0.000946]
[1718904644279,0.0004,64915.0,64910.0,0.000946]
[1718904644484,0.0004,64914.0,64906.0,0.0893744]
[1718904644862,0.1824,64911.0,64906.0,0.0893744]
[1718904646022,0.0481,64916.0,64906.0,0.0893744]
[1718904646023,0.1824,64915.0,64910.0,0.001]
[1718904646227,0.1828,64915.0,64910.0,0.001]
[1718904646468,0.0004,64914.0,64910.0,0.005]
[1718904646664,0.1824,64915.0,64910.0,0.004]
[1718904646665,0.0004,64913.0,64910.0,0.004]
[1718904646826,0.0004,64911.0,64910.0,0.004]
[1718904647036,0.0932,64911.0,64910.0,0.004]
[1718904647262,0.26157854,64911.0,64910.0,0.004]
[1718904647467,0.0932,64907.0,64906.0,0.002]
[1718904647652,0.28519212,64907.0,64906.0,0.002]
[1718904647849,0.28519212,64907.0,64891.0,0.18529644]
[1718904647850,0.0004,64900.0,64891.0,0.18529644]
[1718904648240,0.0928,64898.0,64889.0,0.18529644]
[1718904648447,0.0928,64898.0,64887.0,0.0893744]
[1718904648448,0.00959212,64897.0,64887.0,0.0893744]
[1718904648661,0.1824,64894.0,64887.0,0.0893744]
[1718904648859,0.00959023,64893.0,64887.0,0.0893744]
[1718904649414,0.03850925,64893.0,64887.0,0.0893744]
[1718904649621,0.00959023,64892.0,64887.0,0.0893744]
[1718904649830,0.00959023,64892.0,64882.0,0.0183633]
[1718904649831,0.00999023,64892.0,64883.0,0.0893744]
[1718904650034,0.00999023,64892.0,64879.0,0.27467084]
[1718904650035,0.0928,64888.0,64879.0,0.27467084]
[1718904650196,0.0928,64888.0,64879.0,0.18529644]
[1718904650400,0.1824,64884.0,64876.0,0.27467084]
[1718904650599,0.1828,64884.0,64874.0,0.0893744]
[1718904650840,0.1824,64879.0,64874.0,0.0893744]
[1718904651145,0.01828,64878.0,64873.0,0.0893744]
[1718904651351,0.0481,64877.0,64873.0,0.27467084]
[1718904651553,0.0481,64877.0,64876.0,0.18529644]
[1718904651753,0.0481,64877.0,64875.0,0.18529644]
[1718904652093,0.0481,64877.0,64874.0,0.18529644]
[1718904652523,0.0481,64877.0,64873.0,0.0893744]
[1718904652737,0.02349,64876.0,64872.0,0.00089785]
[1718904652920,0.0447,64875.0,64872.0,0.00089785]
[1718904653319,0.0447,64875.0,64873.0,0.001]
[1718904653993,0.0447,64875.0,64872.0,0.00189785]
[1718904654196,0.0467,64875.0,64872.0,0.00089785]
[1718904654403,0.0467,64875.0,64873.0,0.001]
[1718904654751,0.0447,64875.0,64873.0,0.001]
[1718904654951,0.0467,64875.0,64873.0,0.001]
[1718904655512,0.030069,64874.0,64873.0,0.001]
[1718904655689,0.0467,64875.0,64873.0,0.18629644]
[1718904656481,0.0447,64875.0,64873.0,0.18629644]
[1718904656685,0.002,64874.0,64873.0,0.18629644]
[1718904657315,0.0481,64877.0,64873.0,0.18629644]
[1718904657483,0.0481,64877.0,64875.0,0.18529644]
[1718904657688,0.0481,64877.0,64872.0,0.18619429]
[1718904658093,0.0481,64877.0,64875.0,0.18529644]
[1718904658295,0.0481,64877.0,64872.0,0.18619429]
[1718904658573,0.002,64874.0,64872.0,0.18619429]
[1718904658784,0.002,64874.0,64872.0,0.00089785]
[1718904659735,0.1828,64873.0,64872.0,0.00089785]
[1718904660111,0.1824,64873.0,64872.0,0.00089785]
[1718904660309,0.191976,64873.0,64872.0,0.00089785]
[1718904660771,0.19197609,64873.0,64872.0,0.00089785]
[1718904660941,0.19297642,64873.0,64872.0,0.00082898]
[1718904661351,0.01057642,64873.0,64872.0,0.18612542]
[1718904661556,0.01057642,64873.0,64872.0,0.29386312]
[1718904661727,0.001,64873.0,64872.0,0.52324943]
[1718904661913,0.001,64873.0,64872.0,0.49386312]
[1718904663163,0.001,64873.0,64872.0,0.64642424]
[1718904664329,0.04448246,64877.0,64876.0,0.0893744]
[1718904664524,0.04448246,64877.0,64874.0,0.18529644]
[1718904664726,0.2369337,64884.0,64875.0,0.18529644]
[1718904664727,0.0463,64880.0,64875.0,0.18529644]
[1718904664880,0.0463,64880.0,64874.0,0.0183633]
[1718904664881,0.00958072,64879.0,64874.0,0.18529644]
[1718904665082,0.05198072,64879.0,64874.0,0.18529644]
[1718904665384,0.03044141,64878.0,64874.0,0.18529644]
[1718904665582,0.03044141,64878.0,64872.0,0.18612542]
[1718904665785,0.03044141,64878.0,64872.0,0.00082898]
[1718904665786,0.03084141,64878.0,64872.0,0.00082898]
[1718904666007,0.1824,64876.0,64872.0,0.00082898]
[1718904666370,0.00957939,64875.0,64874.0,0.001]
[1718904666588,0.00957947,64875.0,64874.0,0.001]
[1718904666969,0.00957947,64875.0,64872.0,0.00782898]
[1718904667172,0.00957947,64875.0,64872.0,0.00182898]
[1718904667318,0.02347795,64874.0,64872.0,0.00182898]
[1718904667526,0.00957947,64873.0,64872.0,0.00082898]
[1718904668329,0.02387795,64874.0,64872.0,0.00082898]
[1718904668988,0.0004,64873.0,64872.0,0.00082898]
[1718904669191,0.03054079,64873.0,64872.0,0.00082898]
[1718904669735,0.03054079,64873.0,64862.0,0.18529644]
[1718904669736,0.07644079,64873.0,64862.0,0.18529644]
[1718904669933,0.1824,64869.0,64863.0,0.18529644]
[1718904670139,0.03012408,64868.0,64863.0,0.18529644]
[1718904670416,0.00957316,64867.0,64863.0,0.18529644]
[1718904670566,0.00957316,64867.0,64864.0,0.18529644]
[1718904670766,0.00957316,64867.0,64863.0,0.18529644]
[1718904672399,0.00957316,64867.0,64862.0,0.07628172]
[1718904672615,0.1824,64864.0,64861.0,0.18529644]
[1718904673029,0.00957311,64863.0,64861.0,0.18529644]
[1718904673407,0.1824,64864.0,64861.0,0.18529644]
[1718904673408,0.1824,64864.0,64862.0,0.18529644]
[1718904673564,0.1824,64864.0,64861.0,0.18529644]
[1718904674152,0.01828,64864.0,64861.0,0.19029644]
[1718904674357,0.20068,64864.0,64861.0,0.005]
[1718904674655,0.20068,64864.0,64858.0,0.18529644]
[1718904674656,0.0463,64863.0,64858.0,0.18529644]
[1718904675062,0.0467,64863.0,64861.0,0.003]
[1718904675239,0.03288308,64862.0,64861.0,0.003]
[1718904675722,0.03288319,64862.0,64861.0,0.003]
[1718904676063,0.03288319,64862.0,64850.0,0.2088]
[1718904676064,0.0004,64856.0,64845.0,0.17512712]
[1718904676270,0.1824,64850.0,64845.0,0.009471]
[1718904676472,0.19237319,64850.0,64845.0,0.009471]
[1718904676678,0.0004,64848.0,64845.0,0.009471]
[1718904676893,0.00957319,64847.0,64845.0,0.009471]
[1718904677210,0.00957319,64846.0,64845.0,0.009471]
[1718904677457,0.00957319,64846.0,64838.0,0.35095256]
[1718904677458,0.00032188,64846.0,64838.0,0.35095256]
[1718904677667,0.1824,64844.0,64838.0,0.18529644]
[1718904677875,0.1824,64844.0,64837.0,0.18529644]
[1718904677876,0.00957319,64843.0,64837.0,0.18529644]
[1718904678274,0.00957319,64843.0,64840.0,0.18529644]
[1718904678485,0.1824,64844.0,64840.0,0.18529644]
[1718904678699,0.21364703,64844.0,64840.0,0.18529644]
[1718904679094,0.21364703,64844.0,64838.0,0.26557816]
[1718904679745,0.21364703,64844.0,64840.0,0.18529644]
[1718904679917,0.21364703,64844.0,64840.0,0.18629644]
[1718904680113,0.21364703,64844.0,64840.0,0.18529644]
[1718904680332,0.03440392,64843.0,64840.0,0.18529644]
[1718904680542,0.03440392,64843.0,64840.0,0.004]
[1718904680747,0.00032188,64842.0,64840.0,0.004]
[1718904680904,0.00032188,64840.0,64838.0,0.001]
[1718904681081,0.0887,64841.0,64838.0,0.001]
[1718904681082,0.18272188,64839.0,64838.0,0.001]
[1718904681269,0.00032188,64838.0,64830.0,0.18529644]
[1718904681477,0.03983241,64838.0,64830.0,0.18529644]
[1718904681911,0.03983241,64838.0,64831.0,0.07628172]
[1718904682416,0.03983241,64838.0,64827.0,0.00948199]
[1718904682417,0.1824,64833.0,64827.0,0.00948199]
[1718904682818,0.00032188,64832.0,64827.0,0.00948199]
[1718904683258,0.1824,64833.0,64831.0,0.001]
[1718904683427,0.1824,64833.0,64832.0,0.07628172]
[1718904684175,0.07171142,64844.0,64837.0,0.18529644]
[1718904684353,0.18779475,64844.0,64840.0,0.07628172]
[1718904684675,0.11608333,64844.0,64840.0,0.07628172]
[1718904684904,0.04501838,64845.0,64841.0,0.18529644]
[1718904685111,0.04501838,64845.0,64843.0,0.27467084]
[1718904685223,0.0424,64851.0,64843.0,0.27467084]
[1718904685431,0.03712,64850.0,64847.0,0.07628172]
[1718904685902,0.00032188,64849.0,64840.0,0.16565612]
[1718904686102,0.1824,64847.0,64840.0,0.07628172]
[1718904686247,0.1824,64847.0,64841.0,0.001]
[1718904686248,0.00832188,64845.0,64841.0,0.001]
[1718904686449,0.1824,64842.0,64839.0,0.07628172]
[1718904686650,0.1824,64842.0,64839.0,0.26157816]
[1718904686854,0.1824,64842.0,64839.0,0.07628172]
[1718904687059,0.03659971,64841.0,64839.0,0.07628172]
[1718904687696,0.008,64845.0,64841.0,0.30589644]
[1718904687957,0.008,64845.0,64843.0,0.18529644]
[1718904688229,0.1824,64848.0,64841.0,0.30589644]
[1718904688546,0.1824,64848.0,64843.0,0.18529644]
[1718904688547,0.007,64845.0,64843.0,0.18529644]
[1718904688752,0.007,64845.0,64841.0,0.30689644]
[1718904688984,0.1824,64843.0,64841.0,0.001]
[1718904689216,0.2249,64843.0,64841.0,0.001]
[1718904689836,0.2249,64843.0,64841.0,0.002]
[1718904690016,0.2249,64843.0,64841.0,0.001]
[1718904690826,0.2249,64843.0,64838.0,0.18529644]
[1718904691042,0.2249,64843.0,64833.0,0.1860744]
[1718904691043,0.01,64843.0,64841.0,0.18629644]
[1718904691253,0.01,64843.0,64842.0,0.18529644]
[1718904691458,0.01,64843.0,64841.0,0.18629644]
[1718904691662,0.1884,64848.0,64841.0,0.18529644]
[1718904691873,0.00594616,64848.0,64847.0,0.18529644]
[1718904692076,0.00594616,64848.0,64845.0,0.0951]
[1718904692277,0.1,64850.0,64845.0,0.0951]
[1718904692480,0.1,64850.0,64847.0,0.18529644]
[1718904692621,0.06491846,64849.0,64847.0,0.18529644]
[1718904692821,0.06491846,64849.0,64845.0,0.28039644]
[1718904693228,0.008,64848.0,64847.0,0.001]
[1718904693452,0.06491846,64849.0,64845.0,0.28039644]
[1718904693651,0.06491846,64849.0,64843.0,0.12894142]
[1718904693652,0.1,64850.0,64843.0,0.1105]
[1718904693859,0.1824,64846.0,64840.0,0.18529644]
[1718904694071,0.00086,64843.0,64841.0,0.001]
[1718904694473,0.00086,64843.0,64839.0,0.18529644]
[1718904694708,0.00086,64843.0,64835.0,0.18529644]
[1718904694941,0.1824,64841.0,64837.0,0.18529644]
[1718904695069,0.1824,64841.0,64832.0,0.000946]
[1718904695070,0.1824,64838.0,64832.0,0.000946]
[1718904695277,0.1824,64833.0,64832.0,0.000946]
[1718904697457,0.1824,64833.0,64832.0,0.26252416]
[1718904698020,0.1824,64833.0,64832.0,0.26552416]
[1718904698627,0.1824,64833.0,64832.0,0.28096558]
[1718904698856,0.2029635,64833.0,64832.0,0.28196558]
[1718904699405,0.1959635,64833.0,64832.0,0.28096558]
[1718904699534,0.22255953,64833.0,64832.0,0.07822772]
[1718904699740,0.21555953,64833.0,64832.0,0.07722772]
[1718904700160,0.22255953,64833.0,64832.0,0.07822772]
[1718904700766,0.22255953,64833.0,64832.0,0.26352416]
[1718904700972,0.02056318,64833.0,64832.0,0.28196558]
[1718904701938,0.02056318,64833.0,64832.0,0.37133998]
[1718904702141,0.02056318,64833.0,64832.0,0.58563998]
[1718904702698,0.0205612,64833.0,64832.0,0.58563998]
[1718904702903,0.0205612,64833.0,64832.0,0.7482011]
[1718904703797,0.011,64833.0,64832.0,0.7482011]
[1718904704317,0.007,64833.0,64832.0,0.7482011]
[1718904704496,0.01656183,64833.0,64832.0,0.7512011]
[1718904704943,0.00956183,64833.0,64832.0,0.7502011]
[1718904705156,0.001,64833.0,64832.0,0.7502011]
[1718904705346,0.1824,64847.0,64839.0,0.18529644]
[1718904705552,0.1824,64847.0,64839.0,0.07628172]
[1718904705553,0.00956134,64846.0,64839.0,0.07628172]
[1718904705825,0.1824,64842.0,64837.0,0.18529644]
[1718904706027,0.00956125,64841.0,64840.0,0.18529644]
[1718904707012,0.00956125,64841.0,64840.0,0.20373786]
[1718904707614,0.00955995,64844.0,64841.0,0.18529644]
[1718904707868,0.00955992,64844.0,64841.0,0.18529644]
[1718904708211,0.00955992,64844.0,64843.0,0.18529644]
[1718904708408,0.00955992,64844.0,64843.0,0.27719644]
[1718904708640,0.0095602,64844.0,64841.0,0.18529644]
[1718904709045,0.011,64844.0,64843.0,0.18529644]
[1718904709269,0.02056036,64844.0,64843.0,0.18529644]
[1718904709417,0.02056036,64844.0,64843.0,0.001]